[Event "Titled Tuesday Blitz May 17 Early 2022"]
[White "Manukyan, Sargis A."]
[Black "Maximov, Dmitry"]
[WhiteFideId "13303970"]
[BlackFideId "14105659"]
[WhiteElo "2187"]
[BlackElo "2494"]
[Result "1/2-1/2"]
[Round "03"]
[TimeControl "180+1"]
[Date "2022.05.17"]
[WhiteClock "0:00:08"]
[BlackClock "0:00:07"]

1. Nf3 {[%clk 0:03:00]}  Nf6 {[%clk 0:02:59]} 2. c4 {[%clk 0:03:01]}  c5 {[%clk 0:02:57]} 3. g3 {[%clk 0:03:00]}  g6 {[%clk 0:02:57]} 4. Nc3 {[%clk 0:03:01]}  Bg7 {[%clk 0:02:58]} 5. Bg2 {[%clk 0:03:02]}  O-O {[%clk 0:02:58]} 6. O-O {[%clk 0:03:02]}  Nc6 {[%clk 0:02:58]} 7. a3 {[%clk 0:03:03]}  d6 {[%clk 0:02:56]} 8. Rb1 {[%clk 0:03:02]}  Bf5 {[%clk 0:02:39]} 9. d3 {[%clk 0:03:01]}  Qd7 {[%clk 0:02:39]} 10. Re1 {[%clk 0:02:56]}  Bh3 {[%clk 0:02:38]} 11. Bh1 {[%clk 0:02:56]}  Rad8 {[%clk 0:02:36]} 12. b4 {[%clk 0:02:53]}  b6 {[%clk 0:02:36]} 13. Qa4 {[%clk 0:02:25]}  Rc8 {[%clk 0:02:21]} 14. Bb2 {[%clk 0:02:17]}  h6 {[%clk 0:02:19]} 15. Nd5 {[%clk 0:02:05]}  Nxd5 {[%clk 0:02:05]} 16. cxd5 {[%clk 0:01:51]}  Ne5 {[%clk 0:02:02]} 17. Qxd7 {[%clk 0:01:47]}  Nxd7 {[%clk 0:02:01]} 18. Bxg7 {[%clk 0:01:46]}  Kxg7 {[%clk 0:02:02]} 19. Nd2 {[%clk 0:01:33]}  Ne5 {[%clk 0:01:50]} 20. Rec1 {[%clk 0:01:28]}  f5 {[%clk 0:01:38]} 21. f4 {[%clk 0:01:11]}  Nd7 {[%clk 0:01:24]} 22. Kf2 {[%clk 0:01:05]}  Nf6 {[%clk 0:01:21]} 23. Bf3 {[%clk 0:01:00]}  g5 {[%clk 0:01:21]} 24. e3 {[%clk 0:00:57]}  Bg4 {[%clk 0:01:20]} 25. Bg2 {[%clk 0:00:52]}  Bh5 {[%clk 0:01:20]} 26. h3 {[%clk 0:00:50]}  Bf7 {[%clk 0:01:20]} 27. e4 {[%clk 0:00:48]}  fxe4 {[%clk 0:01:18]} 28. dxe4 {[%clk 0:00:48]}  Bg6 {[%clk 0:01:12]} 29. Ke3 {[%clk 0:00:44]}  Nh5 {[%clk 0:01:09]} 30. f5 {[%clk 0:00:35]}  Bf7 {[%clk 0:01:09]} 31. Kf2 {[%clk 0:00:31]}  Nf6 {[%clk 0:01:06]} 32. Ke3 {[%clk 0:00:29]}  h5 {[%clk 0:01:04]} 33. Bf3 {[%clk 0:00:23]}  g4 {[%clk 0:01:03]} 34. hxg4 {[%clk 0:00:23]}  hxg4 {[%clk 0:01:03]} 35. Be2 {[%clk 0:00:20]}  Rh8 {[%clk 0:01:01]} 36. bxc5 {[%clk 0:00:18]}  dxc5 {[%clk 0:00:50]} 37. Rh1 {[%clk 0:00:17]}  Rh3 {[%clk 0:00:27]} 38. Rxh3 {[%clk 0:00:13]}  gxh3 {[%clk 0:00:28]} 39. Rh1 {[%clk 0:00:12]}  Rh8 {[%clk 0:00:28]} 40. Rh2 {[%clk 0:00:11]}  Be8 {[%clk 0:00:26]} 41. Kf4 {[%clk 0:00:11]}  Bh5 {[%clk 0:00:17]} 42. g4 {[%clk 0:00:11]}  Be8 {[%clk 0:00:16]} 43. Bf3 {[%clk 0:00:11]}  Nd7 {[%clk 0:00:15]} 44. e5 {[%clk 0:00:12]}  b5 {[%clk 0:00:13]} 45. Ne4 {[%clk 0:00:12]}  c4 {[%clk 0:00:13]} 46. g5 {[%clk 0:00:11]}  Nb6 {[%clk 0:00:12]} 47. f6+ {[%clk 0:00:11]}  Kf8 {[%clk 0:00:11]} 48. e6 {[%clk 0:00:10]}  Nxd5+ {[%clk 0:00:11]} 49. Ke5 {[%clk 0:00:11]}  Nc7 {[%clk 0:00:10]} 50. Nc5 {[%clk 0:00:10]}  Rh4 {[%clk 0:00:08]} 51. f7 {[%clk 0:00:09]}  Bxf7 {[%clk 0:00:07]} 52. exf7 {[%clk 0:00:09]}  Kxf7 {[%clk 0:00:08]} 53. Ne4 {[%clk 0:00:06]}  Ne6 {[%clk 0:00:06]} 54. g6+ {[%clk 0:00:05]}  Kxg6 {[%clk 0:00:07]} 55. Kxe6 {[%clk 0:00:05]}  a5 {[%clk 0:00:06]} 56. Kd5 {[%clk 0:00:04]}  Rf4 {[%clk 0:00:05]} 57. Bh1 {[%clk 0:00:03]}  Rf5+ {[%clk 0:00:04]} 58. Kd4 {[%clk 0:00:02]}  e5+ {[%clk 0:00:04]} 59. Kc5 {[%clk 0:00:02]}  b4 {[%clk 0:00:03]} 60. axb4 {[%clk 0:00:03]}  axb4 {[%clk 0:00:04]} 61. Kxc4 {[%clk 0:00:03]}  Rh5 {[%clk 0:00:04]} 62. Kxb4 {[%clk 0:00:04]}  Rh4 {[%clk 0:00:04]} 63. Kc4 {[%clk 0:00:04]}  Kf5 {[%clk 0:00:04]} 64. Kd5 {[%clk 0:00:05]}  Kf4 {[%clk 0:00:05]} 65. Nd6 {[%clk 0:00:05]}  Rh8 {[%clk 0:00:04]} 66. Be4 {[%clk 0:00:05]}  Kg3 {[%clk 0:00:05]} 67. Rh1 {[%clk 0:00:04]}  h2 {[%clk 0:00:05]} 68. Kxe5 {[%clk 0:00:05]}  Kf2 {[%clk 0:00:06]} 69. Kd5 {[%clk 0:00:05]}  Kg3 {[%clk 0:00:06]} 70. Nf5+ {[%clk 0:00:06]}  Kf4 {[%clk 0:00:06]} 71. Nd4 {[%clk 0:00:06]}  Rd8+ {[%clk 0:00:05]} 72. Kc4 {[%clk 0:00:06]}  Kxe4 {[%clk 0:00:06]} 73. Ne2 {[%clk 0:00:06]}  Rc8+ {[%clk 0:00:06]} 74. Kb3 {[%clk 0:00:06]}  Rh8 {[%clk 0:00:06]} 75. Ng3+ {[%clk 0:00:06]}  Kf3 {[%clk 0:00:07]} 76. Nf1 {[%clk 0:00:07]}  Kg2 {[%clk 0:00:07]} 77. Rxh2+ {[%clk 0:00:07]}  Rxh2 {[%clk 0:00:07]} 78. Nxh2 {[%clk 0:00:08]} 1/2-1/2


[Site "https://www.chess.com"]

[Event "Titled Tuesday Blitz May 17 Early 2022"]
[White "Matinian, Nikita"]
[Black "Dubov, Daniil"]
[WhiteFideId "24129100"]
[BlackFideId "24126055"]
[WhiteElo "2422"]
[BlackElo "2791"]
[Result "0-1"]
[Round "03"]
[TimeControl "180+1"]
[Date "2022.05.17"]
[WhiteClock "0:00:02"]
[BlackClock "0:00:12"]

1. e4 {[%clk 0:03:00]}  c5 {[%clk 0:02:59]} 2. Nf3 {[%clk 0:03:00]}  Nc6 {[%clk 0:02:58]} 3. Bb5 {[%clk 0:03:00]}  g6 {[%clk 0:02:58]} 4. O-O {[%clk 0:03:00]}  Bg7 {[%clk 0:02:57]} 5. Re1 {[%clk 0:03:01]}  e5 {[%clk 0:02:56]} 6. c3 {[%clk 0:02:59]}  Nge7 {[%clk 0:02:56]} 7. a3 {[%clk 0:02:56]}  O-O {[%clk 0:02:55]} 8. b4 {[%clk 0:02:56]}  d6 {[%clk 0:02:44]} 9. d3 {[%clk 0:02:56]}  h6 {[%clk 0:02:39]} 10. Nbd2 {[%clk 0:02:54]}  a6 {[%clk 0:02:33]} 11. Bc4 {[%clk 0:02:54]}  b5 {[%clk 0:02:33]} 12. Ba2 {[%clk 0:02:54]}  Kh7 {[%clk 0:02:29]} 13. Nf1 {[%clk 0:02:45]}  a5 {[%clk 0:02:19]} 14. bxc5 {[%clk 0:02:43]}  dxc5 {[%clk 0:02:20]} 15. Ne3 {[%clk 0:02:42]}  Qd6 {[%clk 0:02:17]} 16. Rb1 {[%clk 0:02:33]}  b4 {[%clk 0:02:01]} 17. Nc4 {[%clk 0:02:09]}  Qc7 {[%clk 0:01:47]} 18. Bd2 {[%clk 0:02:07]}  Be6 {[%clk 0:01:37]} 19. Qc2 {[%clk 0:01:59]}  Rfb8 {[%clk 0:01:21]} 20. Bb3 {[%clk 0:01:46]}  Bg4 {[%clk 0:01:10]} 21. axb4 {[%clk 0:01:41]}  cxb4 {[%clk 0:01:03]} 22. Ne3 {[%clk 0:01:33]}  Bxf3 {[%clk 0:01:01]} 23. gxf3 {[%clk 0:01:34]}  Qd7 {[%clk 0:00:53]} 24. Bxf7 {[%clk 0:01:28]}  Rf8 {[%clk 0:00:51]} 25. Bc4 {[%clk 0:00:53]}  Qh3 {[%clk 0:00:43]} 26. Nf1 {[%clk 0:00:45]}  Rxf3 {[%clk 0:00:40]} 27. Re3 {[%clk 0:00:45]}  Raf8 {[%clk 0:00:39]} 28. Rxf3 {[%clk 0:00:44]}  Qxf3 {[%clk 0:00:38]} 29. Be3 {[%clk 0:00:44]}  bxc3 {[%clk 0:00:35]} 30. Qxc3 {[%clk 0:00:44]}  Nd4 {[%clk 0:00:34]} 31. Bxd4 {[%clk 0:00:45]}  exd4 {[%clk 0:00:35]} 32. Qe1 {[%clk 0:00:39]}  Nc6 {[%clk 0:00:33]} 33. Nd2 {[%clk 0:00:34]}  Qg4+ {[%clk 0:00:25]} 34. Kh1 {[%clk 0:00:35]}  Ne5 {[%clk 0:00:25]} 35. Rb7 {[%clk 0:00:30]}  Nxc4 {[%clk 0:00:24]} 36. Nxc4 {[%clk 0:00:27]}  Qf3+ {[%clk 0:00:23]} 37. Kg1 {[%clk 0:00:27]}  Qg4+ {[%clk 0:00:22]} 38. Kh1 {[%clk 0:00:26]}  Qf3+ {[%clk 0:00:22]} 39. Kg1 {[%clk 0:00:25]}  Qxd3 {[%clk 0:00:22]} 40. Ne5 {[%clk 0:00:14]}  Qa6 {[%clk 0:00:22]} 41. Qb1 {[%clk 0:00:09]}  Qe6 {[%clk 0:00:19]} 42. Nd7 {[%clk 0:00:02]}  Qg4+ {[%clk 0:00:17]} 43. Kf1 {[%clk 0:00:03]}  Qh3+ {[%clk 0:00:15]} 44. Kg1 {[%clk 0:00:02]}  Rf4 {[%clk 0:00:12]} 0-1


[Site "https://www.chess.com"]

[Event "Titled Tuesday Blitz May 17 Early 2022"]
[White "Moskalenko, Alexander"]
[Black "Yang, Kaiqi"]
[WhiteFideId "4155351"]
[BlackFideId "8604398"]
[WhiteElo "2434"]
[BlackElo "2373"]
[Result "1-0"]
[Round "03"]
[TimeControl "180+1"]
[Date "2022.05.17"]
[WhiteClock "0:00:13"]
[BlackClock "0:00:02"]

1. Nf3 {[%clk 0:03:00]}  Nf6 {[%clk 0:02:58]} 2. c4 {[%clk 0:02:59]}  g6 {[%clk 0:02:58]} 3. g3 {[%clk 0:02:57]}  Bg7 {[%clk 0:02:59]} 4. Bg2 {[%clk 0:02:57]}  O-O {[%clk 0:02:59]} 5. O-O {[%clk 0:02:58]}  d6 {[%clk 0:03:00]} 6. Nc3 {[%clk 0:02:59]}  c5 {[%clk 0:02:56]} 7. d4 {[%clk 0:02:46]}  Nc6 {[%clk 0:02:56]} 8. d5 {[%clk 0:02:41]}  Na5 {[%clk 0:02:56]} 9. Nd2 {[%clk 0:02:42]}  e6 {[%clk 0:02:54]} 10. dxe6 {[%clk 0:02:36]}  Bxe6 {[%clk 0:02:55]} 11. Qa4 {[%clk 0:02:29]}  Rb8 {[%clk 0:02:46]} 12. Rd1 {[%clk 0:02:12]}  a6 {[%clk 0:02:36]} 13. Nd5 {[%clk 0:02:05]}  b5 {[%clk 0:02:28]} 14. Qc2 {[%clk 0:01:58]}  Nxd5 {[%clk 0:02:13]} 15. cxd5 {[%clk 0:01:56]}  Bf5 {[%clk 0:02:13]} 16. e4 {[%clk 0:01:54]}  Bg4 {[%clk 0:02:13]} 17. Re1 {[%clk 0:01:55]}  c4 {[%clk 0:02:09]} 18. Rb1 {[%clk 0:01:45]}  Qd7 {[%clk 0:02:05]} 19. b4 {[%clk 0:01:35]}  cxb3 {[%clk 0:01:59]} 20. axb3 {[%clk 0:01:36]}  Rfc8 {[%clk 0:01:44]} 21. Qa2 {[%clk 0:01:35]}  Nb7 {[%clk 0:01:43]} 22. b4 {[%clk 0:01:34]}  a5 {[%clk 0:01:38]} 23. bxa5 {[%clk 0:01:33]}  Nc5 {[%clk 0:01:39]} 24. Ba3 {[%clk 0:01:20]}  Nd3 {[%clk 0:01:23]} 25. Re3 {[%clk 0:01:15]}  Ne5 {[%clk 0:01:03]} 26. Bb4 {[%clk 0:00:54]}  Bh6 {[%clk 0:00:57]} 27. Rc3 {[%clk 0:00:50]}  Be2 {[%clk 0:00:41]} 28. a6 {[%clk 0:00:47]}  Qa7 {[%clk 0:00:36]} 29. Rxc8+ {[%clk 0:00:45]}  Rxc8 {[%clk 0:00:37]} 30. Bxd6 {[%clk 0:00:45]}  Nd3 {[%clk 0:00:28]} 31. Rf1 {[%clk 0:00:43]}  Be3 {[%clk 0:00:15]} 32. Nf3 {[%clk 0:00:26]}  Bxf2+ {[%clk 0:00:13]} 33. Kh1 {[%clk 0:00:26]}  Bxf1 {[%clk 0:00:09]} 34. Bxf1 {[%clk 0:00:25]}  Rc1 {[%clk 0:00:09]} 35. Qe2 {[%clk 0:00:21]}  Ne1 {[%clk 0:00:03]} 36. Nd2 {[%clk 0:00:17]}  b4 {[%clk 0:00:02]} 37. Bxb4 {[%clk 0:00:16]}  Nc2 {[%clk 0:00:02]} 38. Bd6 {[%clk 0:00:15]}  Ne3 {[%clk 0:00:02]} 39. Bf4 {[%clk 0:00:14]}  Nxf1 {[%clk 0:00:02]} 40. Nxf1 {[%clk 0:00:14]}  Bc5 {[%clk 0:00:02]} 41. Bxc1 {[%clk 0:00:13]} 1-0


[Site "https://www.chess.com"]

[Event "Titled Tuesday Blitz May 17 Early 2022"]
[White "Neiksans, Arturs"]
[Black "Csonka, Balazs"]
[WhiteFideId "11601388"]
[BlackFideId "742910"]
[WhiteElo "2447"]
[BlackElo "2404"]
[Result "1-0"]
[Round "03"]
[TimeControl "180+1"]
[Date "2022.05.17"]
[WhiteClock "0:01:52"]
[BlackClock "0:00:02"]

1. e4 {[%clk 0:03:00]}  c5 {[%clk 0:03:00]} 2. Nf3 {[%clk 0:03:00]}  e6 {[%clk 0:03:00]} 3. g3 {[%clk 0:02:59]}  h5 {[%clk 0:02:56]} 4. Nc3 {[%clk 0:02:55]}  Nc6 {[%clk 0:02:51]} 5. Bg2 {[%clk 0:02:52]}  Be7 {[%clk 0:02:27]} 6. h3 {[%clk 0:02:50]}  h4 {[%clk 0:02:14]} 7. g4 {[%clk 0:02:50]}  e5 {[%clk 0:02:10]} 8. d3 {[%clk 0:02:48]}  g5 {[%clk 0:02:03]} 9. Nd5 {[%clk 0:02:45]}  f6 {[%clk 0:02:02]} 10. Nd2 {[%clk 0:02:42]}  d6 {[%clk 0:01:58]} 11. Nc4 {[%clk 0:02:42]}  Be6 {[%clk 0:01:57]} 12. Nce3 {[%clk 0:02:40]}  Bf8 {[%clk 0:01:46]} 13. c3 {[%clk 0:02:39]}  Bg7 {[%clk 0:01:39]} 14. O-O {[%clk 0:02:37]}  Nge7 {[%clk 0:01:29]} 15. Qa4 {[%clk 0:02:34]}  O-O {[%clk 0:01:18]} 16. Bf3 {[%clk 0:02:31]}  Ng6 {[%clk 0:01:10]} 17. Nf5 {[%clk 0:02:29]}  Nce7 {[%clk 0:01:01]} 18. Qb3 {[%clk 0:02:16]}  Nxd5 {[%clk 0:00:46]} 19. exd5 {[%clk 0:02:16]}  Bxf5 {[%clk 0:00:34]} 20. gxf5 {[%clk 0:02:16]}  Ne7 {[%clk 0:00:32]} 21. Be4 {[%clk 0:02:15]}  Qd7 {[%clk 0:00:30]} 22. Qd1 {[%clk 0:02:15]}  Rf7 {[%clk 0:00:16]} 23. Kh2 {[%clk 0:02:15]}  Nxf5 {[%clk 0:00:15]} 24. Qh5 {[%clk 0:02:10]}  Nh6 {[%clk 0:00:11]} 25. Bg6 {[%clk 0:02:07]}  Re7 {[%clk 0:00:11]} 26. Rg1 {[%clk 0:02:07]}  Rf8 {[%clk 0:00:12]} 27. Rg2 {[%clk 0:02:07]}  b5 {[%clk 0:00:07]} 28. Be3 {[%clk 0:02:07]}  a5 {[%clk 0:00:07]} 29. Rag1 {[%clk 0:02:07]}  b4 {[%clk 0:00:07]} 30. Be4 {[%clk 0:02:04]}  bxc3 {[%clk 0:00:06]} 31. bxc3 {[%clk 0:02:04]}  Qe8 {[%clk 0:00:06]} 32. Bg6 {[%clk 0:01:57]}  Qa4 {[%clk 0:00:07]} 33. Kh1 {[%clk 0:01:53]}  Qxa2 {[%clk 0:00:04]} 34. Be4 {[%clk 0:01:53]}  Qa4 {[%clk 0:00:04]} 35. Qg6 {[%clk 0:01:53]}  Qa3 {[%clk 0:00:02]} 36. Bxg5 {[%clk 0:01:51]}  fxg5 {[%clk 0:00:01]} 37. Rxg5 {[%clk 0:01:52]}  Ref7 {[%clk 0:00:02]} 38. Qh7# {[%clk 0:01:52]} 1-0


[Site "https://www.chess.com"]

[Event "Titled Tuesday Blitz May 17 Early 2022"]
[White "Preotu, Razvan"]
[Black "Andreikin, Dmitry"]
[WhiteFideId "2613280"]
[BlackFideId "4158814"]
[WhiteElo "2407"]
[BlackElo "2736"]
[Result "0-1"]
[Round "03"]
[TimeControl "180+1"]
[Date "2022.05.17"]
[WhiteClock "0:00:14"]
[BlackClock "0:00:39"]

1. e4 {[%clk 0:03:00]}  e5 {[%clk 0:02:59]} 2. Nf3 {[%clk 0:03:00]}  Nf6 {[%clk 0:02:59]} 3. Nxe5 {[%clk 0:02:58]}  d6 {[%clk 0:02:59]} 4. Nf3 {[%clk 0:02:58]}  Nxe4 {[%clk 0:03:00]} 5. Nc3 {[%clk 0:02:59]}  Nf6 {[%clk 0:02:59]} 6. d4 {[%clk 0:02:58]}  g6 {[%clk 0:02:59]} 7. Bd3 {[%clk 0:02:52]}  Bg7 {[%clk 0:02:59]} 8. O-O {[%clk 0:02:53]}  O-O {[%clk 0:03:00]} 9. h3 {[%clk 0:02:53]}  Nbd7 {[%clk 0:02:58]} 10. Bg5 {[%clk 0:02:47]}  h6 {[%clk 0:02:56]} 11. Be3 {[%clk 0:02:47]}  Nb6 {[%clk 0:02:50]} 12. Qd2 {[%clk 0:02:38]}  Kh7 {[%clk 0:02:50]} 13. Bf4 {[%clk 0:02:38]}  Be6 {[%clk 0:02:49]} 14. b3 {[%clk 0:02:37]}  Qd7 {[%clk 0:02:49]} 15. Ne2 {[%clk 0:02:09]}  Nbd5 {[%clk 0:02:45]} 16. Bh2 {[%clk 0:02:06]}  a5 {[%clk 0:02:45]} 17. c4 {[%clk 0:02:00]}  Nb4 {[%clk 0:02:44]} 18. Bb1 {[%clk 0:02:00]}  Bf5 {[%clk 0:02:43]} 19. a3 {[%clk 0:01:58]}  Na6 {[%clk 0:02:33]} 20. Ng3 {[%clk 0:01:50]}  Bxb1 {[%clk 0:02:29]} 21. Raxb1 {[%clk 0:01:51]}  a4 {[%clk 0:02:29]} 22. b4 {[%clk 0:01:50]}  Rfe8 {[%clk 0:02:23]} 23. b5 {[%clk 0:01:49]}  Nb8 {[%clk 0:02:23]} 24. Rfe1 {[%clk 0:01:47]}  Qd8 {[%clk 0:02:15]} 25. Qc2 {[%clk 0:01:37]}  Nbd7 {[%clk 0:02:14]} 26. c5 {[%clk 0:01:32]}  Nf8 {[%clk 0:02:02]} 27. Nf1 {[%clk 0:01:11]}  Ne6 {[%clk 0:02:00]} 28. Red1 {[%clk 0:01:01]}  Nd5 {[%clk 0:01:57]} 29. N1d2 {[%clk 0:00:58]}  dxc5 {[%clk 0:01:51]} 30. dxc5 {[%clk 0:00:58]}  Nc3 {[%clk 0:01:51]} 31. b6 {[%clk 0:00:39]}  cxb6 {[%clk 0:01:47]} 32. Nc4 {[%clk 0:00:39]}  Nxd1 {[%clk 0:01:47]} 33. Rxd1 {[%clk 0:00:40]}  Nd4 {[%clk 0:01:38]} 34. Nxd4 {[%clk 0:00:34]}  Qxd4 {[%clk 0:01:39]} 35. Nxb6 {[%clk 0:00:27]}  Rad8 {[%clk 0:01:39]} 36. Bd6 {[%clk 0:00:25]}  Qb2 {[%clk 0:01:34]} 37. Qxa4 {[%clk 0:00:22]}  Re2 {[%clk 0:01:29]} 38. Qf4 {[%clk 0:00:21]}  Rxd6 {[%clk 0:01:17]} 39. cxd6 {[%clk 0:00:19]}  Qxb6 {[%clk 0:01:17]} 40. d7 {[%clk 0:00:19]}  Qd8 {[%clk 0:01:00]} 41. Qxf7 {[%clk 0:00:19]}  h5 {[%clk 0:00:40]} 42. Rd6 {[%clk 0:00:16]}  Qg5 {[%clk 0:00:41]} 43. d8=Q {[%clk 0:00:15]}  Re1+ {[%clk 0:00:41]} 44. Kh2 {[%clk 0:00:15]}  Qe5+ {[%clk 0:00:39]} 45. g3 {[%clk 0:00:15]}  Qe4 {[%clk 0:00:40]} 46. Qd5 {[%clk 0:00:14]}  Rh1# {[%clk 0:00:39]} 0-1


[Site "https://www.chess.com"]

[Event "Titled Tuesday Blitz May 17 Early 2022"]
[White "Shipov, Sergei"]
[Black "Skytte, Rasmus"]
[WhiteFideId "4113624"]
[BlackFideId "1404210"]
[WhiteElo "2778"]
[BlackElo "2430"]
[Result "1-0"]
[Round "03"]
[TimeControl "180+1"]
[Date "2022.05.17"]
[WhiteClock "0:00:49"]
[BlackClock "0:00:09"]

1. d4 {[%clk 0:02:57]}  Nf6 {[%clk 0:02:58]} 2. c4 {[%clk 0:02:56]}  c5 {[%clk 0:02:57]} 3. d5 {[%clk 0:02:55]}  b5 {[%clk 0:02:57]} 4. cxb5 {[%clk 0:02:55]}  a6 {[%clk 0:02:56]} 5. e3 {[%clk 0:02:55]}  axb5 {[%clk 0:02:42]} 6. Bxb5 {[%clk 0:02:56]}  Qa5+ {[%clk 0:02:41]} 7. Nc3 {[%clk 0:02:56]}  Bb7 {[%clk 0:02:41]} 8. Bd2 {[%clk 0:02:54]}  Qb6 {[%clk 0:02:32]} 9. a4 {[%clk 0:02:54]}  Nxd5 {[%clk 0:02:27]} 10. Nxd5 {[%clk 0:02:53]}  Bxd5 {[%clk 0:02:26]} 11. Nf3 {[%clk 0:02:54]}  e6 {[%clk 0:02:23]} 12. Bc3 {[%clk 0:02:54]}  Nc6 {[%clk 0:02:18]} 13. O-O {[%clk 0:02:53]}  h5 {[%clk 0:01:59]} 14. Qe2 {[%clk 0:02:51]}  Be4 {[%clk 0:01:49]} 15. Nd2 {[%clk 0:02:51]}  Bg6 {[%clk 0:01:46]} 16. Nc4 {[%clk 0:02:23]}  Qc7 {[%clk 0:01:44]} 17. Rad1 {[%clk 0:02:17]}  Be7 {[%clk 0:01:40]} 18. Bxg7 {[%clk 0:02:16]}  Rg8 {[%clk 0:01:39]} 19. Bc3 {[%clk 0:02:09]}  h4 {[%clk 0:01:39]} 20. h3 {[%clk 0:02:02]}  Bf5 {[%clk 0:01:36]} 21. Kh1 {[%clk 0:02:01]}  Kf8 {[%clk 0:01:30]} 22. e4 {[%clk 0:02:00]}  Bg6 {[%clk 0:01:28]} 23. f4 {[%clk 0:01:58]}  f5 {[%clk 0:01:24]} 24. Be5 {[%clk 0:01:39]}  Qb7 {[%clk 0:01:03]} 25. Nd6 {[%clk 0:01:38]}  Bxd6 {[%clk 0:01:01]} 26. Bxd6+ {[%clk 0:01:38]}  Kf7 {[%clk 0:01:01]} 27. exf5 {[%clk 0:01:30]}  Bxf5 {[%clk 0:00:57]} 28. Bxc5 {[%clk 0:01:29]}  Bxh3 {[%clk 0:00:46]} 29. Qh5+ {[%clk 0:01:20]}  Rg6 {[%clk 0:00:44]} 30. f5 {[%clk 0:01:21]}  Bxg2+ {[%clk 0:00:38]} 31. Kh2 {[%clk 0:01:21]}  exf5 {[%clk 0:00:21]} 32. Rxf5+ {[%clk 0:01:18]}  Kg7 {[%clk 0:00:20]} 33. Rxd7+ {[%clk 0:01:18]}  Qxd7 {[%clk 0:00:19]} 34. Rg5 {[%clk 0:00:55]}  Qc7+ {[%clk 0:00:19]} 35. Kg1 {[%clk 0:00:55]}  Be4 {[%clk 0:00:17]} 36. Bxc6 {[%clk 0:00:49]}  Rxg5+ {[%clk 0:00:11]} 37. Qxg5+ {[%clk 0:00:49]}  Bg6 {[%clk 0:00:10]} 38. Bd4+ {[%clk 0:00:49]}  Kh7 {[%clk 0:00:10]} 39. Qxh4+ {[%clk 0:00:49]}  Kg8 {[%clk 0:00:10]} 40. Qh8+ {[%clk 0:00:48]}  Kf7 {[%clk 0:00:10]} 41. Qg7+ {[%clk 0:00:49]}  Ke6 {[%clk 0:00:09]} 42. Qxc7 {[%clk 0:00:49]} 1-0


[Site "https://www.chess.com"]

[Event "Titled Tuesday Blitz May 17 Early 2022"]
[White "Taboas Rodriguez, Daniel"]
[Black "Donchenko, Alexander"]
[WhiteFideId "2208466"]
[BlackFideId "24603295"]
[WhiteElo "2429"]
[BlackElo "2572"]
[Result "0-1"]
[Round "03"]
[TimeControl "180+1"]
[Date "2022.05.17"]
[WhiteClock "0:00:13"]
[BlackClock "0:00:12"]

1. d4 {[%clk 0:02:59]}  Nf6 {[%clk 0:02:59]} 2. Nf3 {[%clk 0:02:59]}  d5 {[%clk 0:02:59]} 3. c4 {[%clk 0:02:59]}  e6 {[%clk 0:02:59]} 4. Bg5 {[%clk 0:03:00]}  Bb4+ {[%clk 0:02:57]} 5. Nc3 {[%clk 0:02:59]}  h6 {[%clk 0:02:56]} 6. Bh4 {[%clk 0:02:58]}  dxc4 {[%clk 0:02:56]} 7. e3 {[%clk 0:02:57]}  b5 {[%clk 0:02:55]} 8. a4 {[%clk 0:02:57]}  c6 {[%clk 0:02:55]} 9. Be2 {[%clk 0:02:57]}  Bb7 {[%clk 0:02:52]} 10. O-O {[%clk 0:02:57]}  a6 {[%clk 0:02:52]} 11. Ne5 {[%clk 0:02:52]}  Nbd7 {[%clk 0:02:45]} 12. Qc2 {[%clk 0:02:43]}  Be7 {[%clk 0:02:38]} 13. Bf3 {[%clk 0:02:39]}  Nd5 {[%clk 0:02:32]} 14. Bg3 {[%clk 0:02:33]}  Nxe5 {[%clk 0:02:30]} 15. Bxe5 {[%clk 0:02:32]}  O-O {[%clk 0:02:29]} 16. Rad1 {[%clk 0:02:22]}  Rc8 {[%clk 0:02:21]} 17. Ne4 {[%clk 0:02:14]}  Nb4 {[%clk 0:02:17]} 18. Qc3 {[%clk 0:02:10]}  Nd3 {[%clk 0:02:15]} 19. Bg3 {[%clk 0:02:00]}  f5 {[%clk 0:01:57]} 20. Nc5 {[%clk 0:01:59]}  Bxc5 {[%clk 0:01:55]} 21. dxc5 {[%clk 0:01:59]}  Qf6 {[%clk 0:01:54]} 22. Bd6 {[%clk 0:01:41]}  Nxb2 {[%clk 0:01:49]} 23. Rd4 {[%clk 0:01:35]}  Nxa4 {[%clk 0:01:46]} 24. Qd2 {[%clk 0:01:31]}  Rfd8 {[%clk 0:01:42]} 25. Rd1 {[%clk 0:01:25]}  Kh7 {[%clk 0:01:35]} 26. e4 {[%clk 0:01:24]}  c3 {[%clk 0:01:29]} 27. Qc2 {[%clk 0:01:24]}  Nb2 {[%clk 0:01:11]} 28. e5 {[%clk 0:01:16]}  Qg6 {[%clk 0:01:06]} 29. Re1 {[%clk 0:01:16]}  Na4 {[%clk 0:01:04]} 30. h4 {[%clk 0:01:14]}  Kh8 {[%clk 0:01:03]} 31. h5 {[%clk 0:01:14]}  Qf7 {[%clk 0:01:03]} 32. g4 {[%clk 0:01:13]}  Rf8 {[%clk 0:00:36]} 33. Rf4 {[%clk 0:01:12]}  g5 {[%clk 0:00:27]} 34. hxg6 {[%clk 0:00:37]}  Qxg6 {[%clk 0:00:27]} 35. Bxf8 {[%clk 0:00:37]}  Rxf8 {[%clk 0:00:28]} 36. Kh2 {[%clk 0:00:35]}  Bc8 {[%clk 0:00:24]} 37. Rg1 {[%clk 0:00:34]}  Qg7 {[%clk 0:00:22]} 38. Qe2 {[%clk 0:00:26]}  c2 {[%clk 0:00:23]} 39. Re1 {[%clk 0:00:17]}  fxg4 {[%clk 0:00:14]} 40. Rxf8+ {[%clk 0:00:16]}  Qxf8 {[%clk 0:00:15]} 41. Bxg4 {[%clk 0:00:16]}  Qf4+ {[%clk 0:00:15]} 42. Kh3 {[%clk 0:00:15]}  c1=Q {[%clk 0:00:15]} 43. Rxc1 {[%clk 0:00:14]}  Qxc1 {[%clk 0:00:16]} 44. Qf3 {[%clk 0:00:13]}  Qc3 {[%clk 0:00:12]} 0-1


[Site "https://www.chess.com"]